bitfinex/quotes_ETHUSD_20250822
["timestamp","ask_amount","ask_price","bid_price","bid_amount"]
[1755849487381,0.36090418,4338.4,4338.0,0.4588]
[1755849487552,0.85583359,4338.4,4338.3,0.3113]
[1755849487881,0.85583359,4338.4,4338.3,0.7701]
[1755849488279,0.36090418,4338.4,4338.3,0.7701]
[1755849488592,2.81971881,4338.8,4338.3,0.7701]
[1755849488753,0.49492941,4338.7,4338.4,0.4314]
[1755849488953,0.02,4338.8,4338.6,0.3091]
[1755849489254,0.51583516,4338.8,4338.6,0.3091]
[1755849489454,0.0192,4338.8,4338.7,0.4314]
[1755849489676,0.0192,4338.8,4338.7,0.7405]
[1755849491211,0.51583516,4338.8,4338.7,0.7405]
[1755849491764,2.82061989,4338.8,4338.7,0.7405]
[1755849491980,0.51583516,4338.8,4338.7,0.3091]
[1755849492286,0.51583516,4338.8,4338.7,0.7405]
[1755849492593,2.82061989,4338.8,4338.7,0.3091]
[1755849492794,0.51583516,4338.8,4338.7,0.7405]
[1755849493390,2.82061989,4338.8,4338.7,0.7405]
[1755849493755,2.82061989,4338.8,4338.7,0.3091]
[1755849493957,3.66923751,4338.8,4338.7,0.3091]
[1755849494480,1.36445278,4338.8,4338.7,0.3091]
[1755849494670,0.86781762,4338.8,4338.7,0.7405]
[1755849495101,1.36443579,4338.8,4338.7,0.7405]
[1755849495598,0.86781762,4338.8,4338.7,0.7405]
[1755849495922,0.0192,4338.8,4338.7,0.7405]
[1755849496815,0.0202,4338.8,4338.7,0.7405]
[1755849501502,0.0194,4338.8,4338.7,0.7405]
[1755849502114,0.0194,4338.8,4338.2,0.4314]
[1755849502625,2.32418508,4338.8,4338.2,0.4314]
[1755849503413,2.3241963,4338.8,4338.2,0.4314]
[1755849503815,2.30484737,4338.7,4338.2,0.4314]
[1755849504003,2.30490998,4338.6,4338.2,0.4314]
[1755849504198,2.30490998,4338.6,4338.5,0.3091]
[1755849504415,0.0194,4338.8,4338.5,0.3091]
[1755849504610,2.30485093,4338.7,4338.5,0.3091]
[1755849504998,2.30489097,4338.6,4338.5,0.3091]
[1755849505216,2.3048526,4338.7,4338.5,0.3091]
[1755849505527,2.3048526,4338.7,4338.5,0.7405]
[1755849505732,2.3048526,4338.7,4338.5,0.3091]
[1755849505912,0.0194,4338.8,4338.6,0.4314]
[1755849506227,0.0194,4338.8,4338.7,0.3091]
[1755849506741,0.0194,4338.8,4338.7,0.7405]
[1755849513801,2.3049441,4338.5,4338.4,1.773]
[1755849514006,2.4067441,4338.5,4338.4,1.773]
[1755849514616,5.90452823,4338.5,4338.4,1.773]
[1755849516090,5.90372823,4338.5,4338.4,1.773]
[1755849517230,2.30505036,4338.3,4338.2,0.004]
[1755849517385,6.23673098,4338.3,4338.2,0.004]
[1755849518027,6.45303948,4338.3,4338.2,0.004]
[1755849518325,6.62963948,4338.3,4338.2,0.004]
[1755849518529,8.36710478,4338.3,4338.2,0.004]
[1755849519518,9.24331401,4338.3,4338.2,0.004]
[1755849519830,16.41132481,4338.3,4338.2,0.004]
[1755849519994,16.50376881,4338.3,4338.2,0.004]
[1755849520364,15.46028718,4338.3,4338.2,0.004]
[1755849520525,15.67651302,4338.3,4338.2,0.004]
[1755849520828,16.67920262,4338.3,4338.2,0.004]
[1755849521324,15.85207363,4338.3,4338.2,0.004]
[1755849522031,20.65252707,4338.3,4338.2,0.004]
[1755849522191,19.82307363,4338.3,4338.2,0.004]
[1755849522390,20.65215893,4338.3,4338.2,0.004]
[1755849522718,20.43605271,4338.3,4338.2,0.004]
[1755849523116,20.26025271,4338.3,4338.2,0.004]
[1755849524000,16.28925271,4338.3,4338.2,0.004]
[1755849524199,20.26025271,4338.3,4338.2,0.004]
[1755849524530,19.43116741,4338.3,4338.2,0.004]
[1755849525635,19.60706741,4338.3,4338.2,0.004]
[1755849526027,19.60626741,4338.3,4338.2,0.004]
[1755849527529,19.43036741,4338.3,4338.2,0.004]
[1755849529106,19.60626741,4338.3,4338.2,0.004]
[1755849529535,19.2604256,4338.3,4338.2,0.004]
[1755849529734,19.60534917,4338.3,4338.2,0.004]
[1755849530104,19.60534998,4338.3,4338.2,0.004]
[1755849530506,19.60614998,4338.3,4338.2,0.004]
[1755849531341,5.30510349,4338.2,4338.1,0.004]
[1755849531514,9.43364701,4338.2,4338.1,0.004]
[1755849531720,9.61164701,4338.2,4338.1,0.004]
[1755849531918,2.30531605,4337.8,4337.5,0.004]
[1755849532125,12.48295731,4337.5,4337.4,0.004]
[1755849532435,20.57448718,4337.5,4337.4,0.004]
[1755849532739,21.11315117,4337.5,4337.4,0.004]
[1755849533236,14.51043336,4337.5,4337.4,0.004]
[1755849533438,13.54543336,4337.5,4337.4,0.3029]
[1755849533610,12.92473293,4337.5,4337.4,0.7355]
[1755849533937,8.96373293,4337.5,4337.4,0.3029]
[1755849534137,12.57982725,4337.5,4337.4,0.7355]
[1755849534728,12.57982725,4337.5,4337.4,0.3029]
[1755849535355,8.61882725,4337.5,4337.4,0.004]
[1755849535544,8.62262725,4337.5,4337.4,0.004]
[1755849537049,8.9672812,4337.5,4337.4,0.004]
[1755849537917,9.6272812,4337.5,4337.4,0.004]
[1755849538119,9.5348172,4337.5,4337.4,0.004]
[1755849538319,9.5340172,4337.5,4337.4,0.004]
[1755849539013,9.18936325,4337.5,4337.4,0.004]
[1755849539221,9.5341269,4337.5,4337.4,0.004]
[1755849539935,9.53412118,4337.5,4337.4,0.004]
[1755849540135,5.96552865,4337.4,4337.3,1e-08]
[1755849540455,9.17021034,4337.4,4337.3,1e-08]
[1755849540665,13.43021034,4337.4,4337.3,1e-08]
[1755849541152,13.43025553,4337.4,4337.3,1e-08]
[1755849541825,13.74808845,4337.4,4337.3,0.29890001]
[1755849542156,5.80331278,4337.4,4337.3,0.73150001]
[1755849544728,7.48754098,4337.4,4337.3,1e-08]
[1755849544928,8.7683739,4337.4,4337.3,1e-08]
[1755849545744,8.7683739,4337.4,4337.3,0.29890001]
[1755849545960,12.10254098,4337.4,4337.3,0.73150001]
[1755849546324,7.48754098,4337.4,4337.3,0.73150001]
[1755849546547,6.14844885,4337.4,4337.3,0.73150001]
[1755849547051,6.14844885,4337.4,4337.3,0.29890001]
[1755849547355,6.76928177,4337.4,4337.3,0.73150001]
[1755849547541,6.14890383,4337.4,4337.3,0.73150001]
[1755849548049,3.14890383,4337.4,4337.3,0.73150001]
[1755849548251,6.14890383,4337.4,4337.3,0.73150001]
[1755849548453,5.93290942,4337.4,4337.3,0.73150001]
[1755849549152,6.14903918,4337.4,4337.3,0.73150001]
[1755849549958,5.93290942,4337.4,4337.3,0.73150001]
[1755849550627,5.93210942,4337.4,4337.3,0.73150001]
[1755849551258,6.14827764,4337.4,4337.3,0.73150001]
[1755849551754,6.14827764,4337.4,4337.3,0.29890001]
[1755849552056,6.14827764,4337.4,4337.3,0.76860001]
[1755849552455,7.48742966,4337.4,4337.3,1e-08]
[1755849552657,7.58642966,4337.4,4337.3,1e-08]
[1755849552862,11.54142966,4337.4,4337.3,1e-08]
[1755849553430,11.44242966,4337.4,4337.3,1e-08]
[1755849553756,11.44242966,4337.4,4337.3,0.78310001]
[1755849554463,11.44242966,4337.4,4337.3,0.31340001]
[1755849556060,7.48742966,4337.4,4337.3,0.78310001]
[1755849556644,8.10826258,4337.4,4337.3,0.78310001]
[1755849557045,8.10849881,4337.4,4337.3,0.78310001]
[1755849557247,7.48766589,4337.4,4337.3,0.78310001]
[1755849557567,7.48766589,4337.4,4337.3,0.31340001]
[1755849557568,7.4876805,4337.4,4337.3,0.31340001]
[1755849557738,8.20751342,4337.4,4337.3,1e-08]
[1755849558263,7.4876805,4337.4,4337.3,0.31340001]
[1755849558432,11.4426805,4337.4,4337.3,0.31340001]
[1755849558637,11.4426805,4337.4,4337.3,1e-08]
[1755849559552,11.4426805,4337.4,4337.3,0.31340001]
[1755849560041,11.4426805,4337.4,4337.3,0.78310001]
[1755849560243,11.4426805,4337.4,4337.3,0.31340001]
[1755849560462,11.4426805,4337.4,4337.3,1e-08]
[1755849560657,11.0966648,4337.4,4337.3,1e-08]
[1755849560970,11.44280565,4337.4,4337.3,1e-08]
[1755849561264,11.54180565,4337.4,4337.3,1e-08]
[1755849561440,12.20180565,4337.4,4337.3,1e-08]
[1755849561636,13.03089095,4337.4,4337.3,1e-08]
[1755849561840,12.20180565,4337.4,4337.3,1e-08]
[1755849562267,12.20280565,4337.4,4337.3,1e-08]
[1755849562646,11.44300565,4337.4,4337.3,1e-08]
[1755849563350,11.44309795,4337.4,4337.3,1e-08]
[1755849564050,12.27402963,4337.4,4337.3,1e-08]
[1755849564250,11.44309795,4337.4,4337.3,1e-08]
[1755849564439,12.2740307,4337.4,4337.3,1e-08]
[1755849566270,12.14419327,4337.4,4337.3,1e-08]
[1755849566460,12.27400543,4337.4,4337.3,1e-08]
[1755849567246,12.58410543,4337.4,4337.3,1e-08]
[1755849567672,8.62910543,4337.4,4337.3,1e-08]
[1755849567876,12.58410543,4337.4,4337.3,1e-08]
[1755849571271,13.60505144,4337.4,4337.3,1e-08]
[1755849571659,12.77411869,4337.4,4337.3,1e-08]
[1755849573847,12.77411869,4337.4,4337.3,0.78310001]
[1755849573848,6.50986667,4337.4,4337.3,0.78310001]
[1755849574250,7.13305321,4337.4,4337.3,0.78310001]
[1755849574583,1.20593802,4337.4,4337.3,0.78310001]
[1755849574787,0.85973014,4337.4,4337.3,0.78310001]
[1755849574983,3.16445879,4337.4,4337.3,0.78310001]
[1755849576087,0.85893014,4337.4,4337.3,0.78310001]
[1755849576460,3.16445879,4337.4,4337.3,0.78310001]
[1755849577784,3.38074958,4337.4,4337.3,0.78310001]
[1755849577993,3.16445879,4337.4,4337.3,0.78310001]
[1755849586769,0.85893014,4337.4,4337.3,0.78310001]
[1755849586974,0.36194601,4337.4,4337.3,0.78310001]
[1755849587175,0.36114601,4337.4,4337.3,0.78310001]
[1755849588394,0.85919285,4337.4,4337.3,0.78310001]
[1755849588565,0.36114601,4337.4,4337.3,0.78310001]
[1755849589700,2.66667466,4337.4,4337.3,0.78310001]
[1755849589998,0.36114601,4337.4,4337.3,0.78310001]
[1755849590299,0.0002,4337.4,4337.3,0.62266958]
[1755849590499,0.0002,4337.4,4337.3,0.76170001]
[1755849590793,2.30572865,4337.4,4337.3,0.76170001]
[1755849591679,2.30572865,4337.4,4337.3,1e-08]
[1755849591998,2.30572865,4337.4,4337.3,0.73400001]
[1755849593583,5.30572865,4337.4,4337.3,0.28570001]
[1755849593794,5.80356556,4337.4,4337.3,0.28570001]
[1755849594298,5.90256556,4337.4,4337.3,1e-08]
[1755849594601,6.11868768,4337.4,4337.3,1e-08]
[1755849595002,7.02341863,4337.4,4337.3,1e-08]
[1755849595188,7.02342535,4337.4,4337.3,1e-08]
[1755849595368,7.40312535,4337.4,4337.3,1e-08]
[1755849595569,7.532827,4337.4,4337.3,1e-08]
[1755849599386,7.532027,4337.4,4337.3,1e-08]
[1755849600132,6.6883596,4337.4,4337.3,1e-08]
[1755849600438,2.30574129,4337.0,4336.9,0.40630001]
[1755849600713,2.30574129,4337.0,4336.9,0.2857]
[1755849600912,6.41273708,4337.0,4336.9,0.2857]
[1755849601100,5.30579446,4336.9,4336.8,0.00400001]
[1755849601301,6.14966638,4336.9,4336.8,0.00400001]
[1755849601712,6.14966638,4336.9,4336.8,0.28970001]
[1755849601890,6.14966638,4336.9,4336.8,0.00400001]
[1755849602091,7.43698387,4336.9,4336.8,0.00400001]
[1755849602292,7.20828839,4336.9,4336.8,0.00400001]
[1755849602515,7.3379661,4336.9,4336.8,0.28970001]
[1755849602703,6.14964861,4336.9,4336.8,0.73800001]
[1755849602909,6.0199709,4336.9,4336.8,0.73800001]
[1755849603396,6.01995033,4336.9,4336.8,0.73800001]
[1755849605493,5.80381176,4336.9,4336.8,0.00400001]
[1755849605846,5.80381176,4336.9,4336.8,0.73800001]
[1755849606125,0.4980173,4336.9,4336.8,0.73800001]
[1755849606320,2.30548387,4337.5,4336.8,0.73800001]
[1755849606521,2.30553367,4337.4,4336.8,0.28970001]
[1755849606740,2.80344738,4337.6,4336.9,0.65467]
[1755849607030,5.80344738,4337.6,4337.5,0.2857]
[1755849607542,5.80344738,4337.6,4337.5,0.734]
[1755849607737,0.4980173,4337.6,4337.5,0.734]
[1755849608094,2.30542235,4337.6,4337.5,0.734]
[1755849608300,2.80333839,4337.8,4337.5,0.734]
[1755849608599,2.8033865,4337.7,4337.6,0.4689]
[1755849608798,2.8033865,4337.7,4336.8,3.95700001]
[1755849608799,2.30545612,4337.6,4336.8,3.95700001]
[1755849609032,2.30630806,4337.9,4337.5,0.3073]
[1755849609321,2.3062701,4337.9,4337.5,0.3073]
[1755849609532,0.49870868,4337.9,4337.6,0.4689]
[1755849609702,0.49870868,4337.9,4337.8,0.3073]
[1755849609898,2.30626291,4337.9,4337.8,0.7762]
[1755849610099,2.80397159,4337.9,4337.8,0.7762]
[1755849610806,2.30626291,4337.9,4337.8,0.7762]
[1755849611134,2.30548214,4337.5,4336.8,0.00400001]
[1755849611333,0.001,4337.9,4337.4,0.3073]
[1755849611630,0.49853807,4337.9,4337.4,0.3073]
[1755849611832,2.30456979,4337.7,4337.5,0.4689]
[1755849612143,2.30456979,4337.7,4337.6,0.3073]
[1755849612299,2.30456979,4337.7,4337.6,0.7762]
[1755849613404,4.2470703,4337.7,4336.8,0.00400001]
[1755849613741,2.30579446,4336.9,4336.8,0.47290001]
[1755849614038,0.49758887,4337.0,4336.8,0.78020001]
[1755849614238,2.30559226,4337.3,4336.8,0.31130001]
[1755849614450,0.49756127,4337.3,4336.9,0.4689]
[1755849614750,0.36089887,4337.7,4337.2,0.3073]
[1755849615045,0.71342261,4338.0,4337.3,0.4689]
[1755849615207,0.49749539,4338.0,4337.8,0.3073]
[1755849615411,0.001,4338.3,4337.8,0.3073]
[1755849615412,0.36088173,4338.2,4337.8,0.3073]
[1755849615733,2.30542235,4337.6,4337.5,1.774]
[1755849615906,2.30542235,4337.6,4336.8,1.77800001]
[1755849616112,2.30552107,4337.5,4336.8,2.24690001]
[1755849616356,0.49743096,4337.5,4336.9,0.49195794]
[1755849616553,2.30551977,4337.5,4336.9,0.4689]
[1755849616713,2.30560296,4337.3,4336.9,0.4689]
[1755849616908,0.49743096,4337.5,4337.0,0.02305741]
[1755849617107,2.30549465,4337.5,4337.2,0.3073]
[1755849617315,2.30558181,4337.3,4337.2,0.7762]
[1755849617550,5.30541022,4337.7,4337.2,0.3073]
[1755849617843,2.30554057,4337.4,4337.2,0.7762]
[1755849618339,2.30558181,4337.3,4337.2,0.3073]
[1755849618541,2.66643429,4337.4,4336.9,0.4689]
[1755849618748,2.66643429,4337.4,4337.2,0.3073]
[1755849618957,2.30558181,4337.3,4337.2,0.3073]
[1755849620244,2.30558181,4337.3,4337.2,0.7762]
[1755849621247,0.36089463,4337.4,4336.8,1.77800001]
[1755849621421,2.30578182,4337.0,4336.8,1.77800001]
[1755849621749,2.30574129,4337.0,4336.9,0.7762]
[1755849622124,2.30569417,4337.1,4336.9,0.7762]
[1755849622339,2.30558386,4337.3,4336.9,0.3073]
[1755849622556,2.30568813,4337.1,4337.0,0.4689]
[1755849623051,2.30568813,4337.1,4337.0,0.7762]
[1755849623341,0.49756244,4337.1,4336.8,1.77800001]
[1755849623544,2.30558181,4337.3,4337.0,0.3073]
[1755849623744,2.30568813,4337.1,4337.0,0.3073]
[1755849624047,2.30488813,4337.1,4337.0,0.3073]
[1755849624426,0.49756636,4337.3,4337.0,0.7762]
[1755849624627,2.30563497,4337.2,4337.0,0.7762]
[1755849624954,2.80316288,4337.3,4337.0,0.3073]
[1755849625161,2.30563984,4337.2,4337.1,0.4689]
[1755849625460,2.30563984,4337.2,4337.1,0.3073]
[1755849625646,2.80315408,4337.3,4337.1,0.3073]
[1755849625844,2.30563497,4337.2,4337.1,0.3073]
[1755849626227,2.80315138,4337.3,4337.1,0.3073]
[1755849626423,2.80315138,4337.3,4337.1,0.51583]
[1755849626424,0.49756636,4337.3,4337.1,0.51583]
[1755849626625,0.001,4337.9,4337.2,0.4689]
[1755849626830,2.30537827,4337.7,4337.3,3.951]
[1755849627024,2.30579446,4336.9,4336.8,5.72900001]
[1755849627249,6.82718181,4337.4,4336.8,5.72900001]
[1755849627250,2.30558181,4337.3,4336.8,6.03630001]
[1755849627449,6.51748181,4337.4,4336.8,6.50520001]
[1755849627748,0.49759757,4337.3,4336.8,6.50520001]
[1755849627946,2.30579446,4336.9,4336.8,6.50520001]
[1755849628746,2.30579446,4336.9,4336.8,0.78020001]
[1755849628948,2.30579446,4336.9,4336.8,0.00400001]
[1755849628949,3.07564272,4336.9,4336.8,0.00400001]
[1755849629122,3.57334986,4336.9,4336.8,0.00400001]
[1755849629623,3.78942189,4336.9,4336.8,0.00400001]
[1755849630052,3.93431698,4336.9,4336.8,0.00400001]
[1755849630251,4.15038335,4336.9,4336.8,0.00400001]
[1755849630429,3.93431698,4336.9,4336.8,0.00400001]
[1755849630634,4.15038777,4336.9,4336.8,0.00400001]
[1755849631635,4.15035274,4336.9,4336.8,0.00400001]
[1755849631950,7.15037083,4336.9,4336.8,0.00400001]
[1755849632329,7.28000489,4336.9,4336.8,0.00400001]
[1755849633657,6.38052429,4336.9,4336.8,0.78020001]
[1755849633836,0.85867426,4336.9,4336.8,0.78020001]
[1755849634033,0.36096712,4336.9,4336.8,0.78020001]
[1755849636240,0.36016712,4336.9,4336.8,0.78020001]
[1755849636557,0.36016712,4336.9,4336.8,0.00400001]
[1755849636724,3.36144901,4336.9,4336.8,0.00400001]
[1755849636929,3.85915615,4336.9,4336.8,0.00400001]
[1755849637431,3.47336872,4336.9,4336.8,0.00400001]
[1755849637858,3.16366872,4336.9,4336.8,0.00400001]
[1755849638355,0.85787426,4336.9,4336.8,0.74230001]
[1755849638557,0.36016712,4336.9,4336.8,0.74230001]
[1755849639257,2.66596158,4336.9,4336.8,0.29820001]
[1755849639454,2.66596158,4336.9,4336.8,0.00400001]
[1755849639661,3.16364654,4336.9,4336.8,0.00400001]
[1755849640866,1.16925208,4336.9,4336.8,0.00400001]
[1755849641172,2.97736158,4336.9,4336.8,0.00400001]
[1755849641383,2.97736158,4336.9,4336.8,0.29820001]
[1755849641384,0.85785208,4336.9,4336.8,0.29820001]
[1755849641663,5.30566074,4337.2,4336.8,0.74230001]
[1755849641880,0.49768496,4337.1,4336.9,0.46715794]
[1755849642166,0.49768496,4337.3,4337.0,0.2942]
[1755849642323,2.30568813,4337.1,4337.0,0.7383]
[1755849642756,2.80332847,4337.2,4337.0,0.7383]
[1755849642970,0.49768496,4337.1,4337.0,0.2942]
[1755849643154,0.36094738,4337.4,4337.0,0.2942]
[1755849643155,2.30560602,4337.3,4337.0,0.2942]
[1755849643360,0.49768496,4337.3,4337.0,0.2942]
[1755849643530,2.30568813,4337.1,4337.0,0.2942]
[1755849644475,2.30579446,4336.9,4336.8,0.00400001]
[1755849644846,2.30579446,4336.9,4336.8,0.29820001]
[1755849645390,2.91573963,4336.9,4336.8,0.00400001]
[1755849645546,3.62991706,4336.9,4336.8,0.00400001]
[1755849645747,3.99087768,4336.9,4336.8,0.00400001]
[1755849646360,3.47993251,4336.9,4336.8,0.00400001]
[1755849646557,3.26372421,4336.9,4336.8,0.00400001]
[1755849646879,6.38095679,4336.9,4336.8,0.29820001]
[1755849647180,6.01999617,4336.9,4336.8,0.74230001]
[1755849647353,6.01999542,4336.9,4336.8,0.74230001]
[1755849647547,6.01999542,4336.9,4336.8,0.29820001]
[1755849647747,6.01999542,4336.9,4336.8,0.00400001]
[1755849648062,6.01999542,4336.9,4336.8,0.29820001]
[1755849648261,6.01999542,4336.9,4336.8,0.74230001]
[1755849648462,6.01919542,4336.9,4336.8,0.00400001]
[1755849648775,6.11819542,4336.9,4336.8,0.00400001]
[1755849648944,6.01919542,4336.9,4336.8,0.00400001]
[1755849649143,6.01919542,4336.9,4336.8,0.74230001]
[1755849649752,6.01919542,4336.9,4336.8,0.29820001]
[1755849650484,6.01923905,4336.9,4336.8,0.74230001]
[1755849650679,6.01923905,4336.9,4336.8,0.00400001]
[1755849650888,6.01923905,4336.9,4336.8,0.29820001]
[1755849651488,6.01923905,4336.9,4336.8,0.74230001]
[1755849652173,7.04910843,4336.9,4336.8,0.00400001]
[1755849652380,7.17888618,4336.9,4336.8,0.00400001]
[1755849653307,7.60018618,4336.9,4336.8,0.00400001]
[1755849653663,7.60023093,4336.9,4336.8,0.00400001]
[1755849655300,7.60223093,4336.9,4336.8,0.00400001]
[1755849656178,14.11971274,4336.9,4336.8,0.00400001]
[1755849656780,14.11971004,4336.9,4336.8,0.00400001]
[1755849657705,2.3059008,4336.7,4336.6,1e-08]
[1755849657904,12.95402097,4336.7,4336.6,1e-08]
[1755849658079,12.3689777,4336.7,4336.6,1e-08]
[1755849659106,13.61450619,4336.7,4336.6,1e-08]
[1755849659707,12.3689777,4336.7,4336.6,1e-08]
[1755849659909,12.36873381,4336.7,4336.6,1e-08]
[1755849660425,12.86672899,4336.7,4336.6,1e-08]
[1755849660576,12.86672906,4336.7,4336.6,1e-08]
[1755849660775,12.8659137,4336.7,4336.6,1e-08]
[1755849661276,13.22696008,4336.7,4336.6,1e-08]
[1755849661476,14.47147535,4336.7,4336.6,1e-08]
[1755849663022,8.82370168,4336.1,4336.0,0.004]
[1755849663180,14.73051785,4336.1,4336.0,0.004]
[1755849663510,8.21303604,4336.1,4336.0,0.004]
[1755849663709,8.57409333,4336.1,4336.0,0.004]
[1755849666212,9.19535016,4336.1,4336.0,0.004]
[1755849667319,8.57364763,4336.1,4336.0,0.004]
[1755849668413,8.57342107,4336.1,4336.0,0.004]
[1755849668914,4.62342107,4336.1,4336.0,0.004]
[1755849669078,8.35769368,4336.1,4336.0,0.004]
[1755849669281,8.57340342,4336.1,4336.0,0.004]
[1755849670813,4.62340342,4336.1,4336.0,0.004]
[1755849671193,8.57240342,4336.1,4336.0,0.004]
[1755849671419,8.57340342,4336.1,4336.0,0.004]
[1755849671621,3.16527234,4336.1,4336.0,0.004]
[1755849671912,2.30621987,4336.1,4336.0,0.004]
[1755849672687,3.0,4336.4,4336.0,0.004]
[1755849672890,0.49611504,4336.3,4336.0,0.004]
[1755849673102,2.3061291,4336.3,4336.0,0.004]
[1755849673514,3.0,4336.5,4336.0,0.004]
[1755849673723,2.30621987,4336.1,4336.0,0.004]
[1755849676400,2.30612407,4336.3,4336.0,0.004]
[1755849676800,0.62170253,4336.9,4336.0,0.02706273]
[1755849676996,2.30601249,4336.5,4336.0,0.004]
[1755849677197,2.30601249,4336.5,4336.0,0.23744264]
[1755849677708,2.30615988,4336.3,4336.0,0.23744264]
[1755849677903,2.30607298,4336.4,4336.0,0.23744264]
[1755849678625,2.30611882,4336.3,4336.0,0.23744264]
[1755849678809,2.30607569,4336.4,4336.0,0.23744264]
[1755849679224,3.0,4336.8,4336.0,0.23744264]
[1755849679424,2.30613461,4336.3,4336.0,0.23744264]
[1755849679600,2.30607393,4336.4,4336.0,0.23744264]
[1755849679798,0.36098833,4336.8,4336.0,0.23744264]
[1755849680405,2.30591232,4336.7,4336.0,0.23744264]
[1755849680607,0.36098833,4336.8,4336.1,0.25677688]
[1755849680924,2.30680139,4336.9,4336.1,2.30621987]
[1755849681121,0.001,4336.9,4336.0,4.0672]
[1755849681298,0.001,4336.9,4336.6,2.30590595]
[1755849681608,0.001,4336.9,4336.7,2.30586197]
[1755849682012,0.001,4336.9,4336.8,2.32890609]
[1755849682341,0.001,4336.9,4336.8,2.96584762]
[1755849683416,0.001,4336.9,4336.8,3.10410609]
[1755849683617,0.001,4336.9,4336.8,3.08104762]
[1755849684340,0.001,4336.9,4336.8,7.02904762]
[1755849685245,0.0002,4336.9,4336.8,7.02904762]
[1755849685445,0.0002,4336.9,4336.8,0.1152]
[1755849685810,0.0002,4336.9,4336.6,1.774]
[1755849686045,2.30585458,4336.8,4336.6,1.774]
[1755849686639,0.0002,4336.9,4336.6,1.774]
[1755849687410,2.30589108,4336.8,4336.7,3.947]
[1755849688212,0.0002,4336.9,4336.6,1.774]
[1755849689221,2.30584762,4336.8,4336.6,1.774]
[1755849689427,0.0002,4336.9,4336.7,0.023059]
[1755849689739,0.0002,4336.9,4336.7,0.1774]
[1755849690360,2.30599543,4336.9,4336.6,1.774]
[1755849690920,2.30584762,4336.8,4336.6,1.774]
[1755849691231,2.3059008,4336.7,4336.6,1.774]
[1755849692952,0.0002,4336.9,4336.6,1.774]
[1755849693154,0.0002,4336.9,4336.7,0.023059]
[1755849693528,0.0002,4336.9,4336.7,0.66]
[1755849693725,0.0002,4336.9,4336.8,2.96584762]
[1755849695928,0.0002,4336.9,4336.8,2.98890609]
[1755849696560,0.0002,4336.9,4336.8,6.93490609]
[1755849696761,0.0002,4336.9,4336.8,6.91184762]
[1755849697344,0.0004,4337.1,4337.0,2.96574129]
[1755849697542,0.0004,4337.1,4337.0,9.50628051]
[1755849697741,0.0004,4337.1,4337.0,9.4832231]
[1755849698057,0.001,4337.4,4337.3,2.96558181]
[1755849698259,0.001,4337.4,4337.3,12.36463762]
[1755849698436,0.001,4337.4,4337.3,24.67508981]
[1755849698764,0.001,4337.4,4337.3,17.96208081]
[1755849699449,0.001,4337.6,4337.5,14.91295731]
[1755849699766,0.001,4337.6,4337.5,22.22995731]
[1755849700469,0.001,4337.6,4337.5,31.98025991]
[1755849702168,0.001,4337.6,4337.5,28.03425991]
[1755849702362,0.001,4337.6,4337.5,31.97925991]
[1755849703061,0.001,4337.6,4337.5,28.12664791]
[1755849703267,0.001,4337.6,4337.5,32.07164791]
[1755849705468,0.001,4337.6,4337.5,28.12664791]
[1755849705671,0.001,4337.6,4337.5,32.07164791]
[1755849707053,0.001,4337.6,4337.5,32.07064791]
[1755849707354,0.001,4337.6,4337.5,17.3188635]
[1755849709455,0.001,4337.7,4337.6,5.96542235]
[1755849709772,0.0002,4337.7,4337.6,17.61718935]
[1755849709946,0.0002,4337.7,4337.6,14.49646135]
[1755849710146,0.0002,4337.7,4337.6,12.95242535]
[1755849710872,0.0194,4338.8,4338.4,5.96499723]
[1755849711070,0.0194,4338.8,4338.4,7.73799723]
[1755849711272,0.0194,4338.8,4338.4,7.85319723]
[1755849711478,0.0194,4338.8,4338.4,11.88857623]
[1755849711645,0.0194,4338.8,4338.4,5.923579]
[1755849711976,0.0194,4338.8,4338.4,8.13619723]
[1755849713361,0.0194,4338.8,4338.4,4.19319723]
[1755849713675,0.0194,4338.8,4338.4,8.13619723]
[1755849714446,0.0194,4338.8,4338.4,4.19319723]
[1755849714847,0.0194,4338.8,4338.4,8.13619723]
[1755849715600,0.0194,4338.8,4338.4,1.8882]
[1755849715884,0.0194,4338.8,4338.4,5.85424997]
[1755849716047,0.0194,4338.8,4338.4,8.02099723]
[1755849717054,0.0194,4338.8,4338.4,8.79619723]
[1755849717450,0.0194,4338.8,4338.4,8.88858223]
[1755849718878,0.5232,4338.5,4338.4,1.980585]
[1755849719098,0.5232,4338.5,4338.4,5.808385]
[1755849719474,0.5232,4338.5,4338.4,5.716]
[1755849719652,0.287,4338.5,4338.4,5.716]
[1755849719847,0.287,4338.5,4338.4,1.773]
[1755849720080,0.287,4338.5,4338.4,5.715]
[1755849720290,0.001,4338.5,4338.4,9.44749723]
[1755849720467,0.001,4338.5,4338.4,9.56269723]
[1755849720781,0.001,4338.5,4338.4,8.79519723]
[1755849720951,0.1,4338.5,4338.4,4.19319723]
[1755849721154,0.1,4338.5,4338.4,5.715]
[1755849721390,0.5213,4338.5,4338.4,5.715]
[1755849721550,0.1,4338.5,4338.4,5.715]
[1755849722096,0.5205,4338.5,4338.4,5.715]
[1755849722398,0.0992,4338.5,4338.4,5.715]
[1755849722878,0.0992,4338.5,4338.4,1.773]
[1755849723093,0.5205,4338.5,4338.4,5.715]
[1755849723791,0.5205,4338.5,4338.4,1.773]
[1755849724092,0.5205,4338.5,4338.4,5.715]
[1755849724567,0.0992,4338.5,4338.4,5.715]
[1755849724958,2.8235441,4338.5,4338.4,5.715]
[1755849725154,3.36000709,4338.5,4338.4,5.715]
[1755849725353,3.85706663,4338.5,4338.4,5.715]
[1755849726062,1.05506299,4338.5,4338.4,5.715]
[1755849726280,0.0992,4338.5,4338.4,5.715]
[1755849726995,0.0002,4338.5,4338.4,6.4825]
[1755849727305,0.0002,4338.5,4338.4,9.56269723]
[1755849727489,0.0002,4338.5,4338.4,9.65508123]
[1755849728068,0.0002,4338.5,4338.4,8.54328123]
[1755849728564,0.0002,4338.5,4338.4,8.97708123]
[1755849728980,0.0002,4338.5,4338.4,12.63708123]
[1755849730176,0.0002,4338.5,4338.4,8.69508123]
[1755849730381,0.0002,4338.5,4338.4,12.63708123]
[1755849734194,0.001,4338.6,4338.4,12.63708123]